bitfinex/quotes_ETHUSD_20250411
["timestamp","ask_amount","ask_price","bid_price","bid_amount"]
[1744359048907,6.40439,1561.5,1561.2,6.09743987]
[1744359049210,6.40441,1561.5,1561.0,1.538]
[1744359049421,6.40596,1561.1,1560.8,4.5583391]
[1744359049776,6.40645,1561.0,1560.8,4.5583391]
[1744359050302,6.40507,1561.3,1560.8,4.5583391]
[1744359050512,6.40518,1561.3,1560.8,4.5583391]
[1744359050672,7.045698,1561.3,1560.8,4.5583391]
[1744359050879,6.40412,1561.5,1560.9,6.40634]
[1744359050880,6.40454,1561.4,1560.9,6.40634]
[1744359051185,6.40438,1561.5,1560.9,1.6532]
[1744359051385,6.4045,1561.4,1560.9,1.6532]
[1744359051887,6.40368,1561.6,1560.5,1.5985]
[1744359051888,7.40696425,1561.5,1560.5,1.5985]
[1744359052075,6.40592,1561.1,1561.0,0.14522322]
[1744359052273,6.40543,1561.2,1560.6,6.40742]
[1744359052476,1.6196,1561.7,1561.0,0.12101935]
[1744359052696,6.40248,1561.9,1561.3,1.643]
[1744359052914,6.40248,1561.9,1561.3,8.04768]
[1744359053110,6.4036,1561.7,1561.3,1.643]
[1744359053307,6.40286,1561.8,1561.3,1.643]
[1744359053615,6.40475,1561.4,1560.9,1.5559]
[1744359053817,6.40488,1561.4,1560.9,1.5559]
[1744359054021,6.40469,1561.4,1560.9,1.5559]
[1744359054180,6.40536,1561.2,1560.9,1.5559]
[1744359054515,6.4061,1561.1,1560.6,1.6351]
[1744359055218,6.40503,1561.3,1560.6,1.6351]
[1744359055420,8.04743325,1561.4,1560.6,1.6351]
[1744359055581,6.40511,1561.3,1560.8,6.40676]
[1744359055781,1.5581,1561.7,1560.9,1.639]
[1744359056009,7.96144,1561.7,1561.2,6.40527]
[1744359056209,7.96144,1561.7,1561.1,6.40538]
[1744359056407,6.40373,1561.6,1561.1,6.40538]
[1744359056615,6.40373,1561.6,1561.2,0.3437589]
[1744359056815,6.40425,1561.5,1561.2,0.3437589]
[1744359057026,6.4037,1561.6,1561.2,0.3437589]
[1744359057329,6.4037,1561.6,1561.3,0.3437589]
[1744359057631,6.40411,1561.5,1561.3,0.3437589]
[1744359057934,6.40411,1561.5,1561.4,0.3437589]
[1744359058539,14.244144,1561.6,1561.4,0.3437589]
[1744359058842,6.40409,1561.5,1561.4,0.3437589]
[1744359059135,7.840224,1561.6,1561.4,0.3437589]
[1744359059341,14.244154,1561.6,1561.4,0.3437589]
[1744359059631,12.27,1561.8,1561.5,0.92234568]
[1744359059998,6.40164,1562.1,1561.6,0.3437589]
[1744359060339,6.40286,1561.8,1561.7,0.57815614]
[1744359060539,7.043146,1561.8,1561.7,0.92191504]
[1744359060703,7.043146,1561.8,1561.7,1.50050182]
[1744359061051,6.40454,1561.4,1561.2,1.5335]
[1744359061221,6.40568,1561.2,1560.9,1.6459]
[1744359061426,6.40614,1561.0,1560.6,1.6459]
[1744359061735,6.4058,1561.1,1560.6,1.6459]
[1744359061938,6.4058,1561.1,1560.6,8.05355]
[1744359062250,6.4058,1561.1,1560.6,1.6459]
[1744359062251,6.40593,1561.1,1560.6,1.6459]
[1744359062400,6.40804,1560.6,1560.2,1.5485]
[1744359062600,6.40739,1560.7,1560.2,1.5485]
[1744359062797,6.40841,1560.5,1560.2,1.5485]
[1744359063106,12.81296,1561.0,1560.4,12.81668]
[1744359063307,13.81231425,1561.2,1560.7,6.40723]
[1744359063506,6.40588,1561.1,1560.5,6.40783]
[1744359063732,6.40632,1561.0,1560.5,12.81588]
[1744359064044,70.33728425,1561.4,1560.9,6.40633]
[1744359064045,54.939,1561.4,1560.9,6.40633]
[1744359064241,6.40507,1561.3,1560.8,1.5154]
[1744359064444,6.40491,1561.3,1560.8,1.5154]
[1744359064605,6.40558,1561.2,1560.8,1.5154]
[1744359064805,65.75064425,1561.4,1560.8,7.92216]
[1744359065010,6.40548,1561.2,1560.8,1.5154]
[1744359065324,61.34368,1561.4,1560.8,1.5154]
[1744359065642,67.74854,1561.4,1560.8,7.92213]
[1744359065832,67.79612548,1561.4,1560.8,7.92213]
[1744359066033,54.939,1561.4,1560.9,12.81272]
[1744359066223,54.939,1561.4,1561.0,6.40613]
[1744359066544,54.939,1561.4,1560.8,1.5154]
[1744359066545,6.40492,1561.3,1560.8,14.32906]
[1744359066711,6.40492,1561.3,1560.8,7.92215]
[1744359066914,56.35024013,1561.4,1560.8,7.92215]
[1744359067107,18.67183,1561.6,1561.1,6.40556]
[1744359067750,17.21227425,1561.9,1561.3,7.95096]
[1744359067961,4.40696425,1561.9,1561.3,1.5463]
[1744359068136,6.40292,1561.8,1561.3,7.95117]
[1744359068315,4.40696425,1561.9,1561.3,1.5463]
[1744359068511,0.74826648,1562.2,1561.4,6.4045]
[1744359068712,6.7978825,1562.3,1561.8,6.40281]
[1744359068915,0.3970125,1562.3,1561.9,6.40214]
[1744359069163,0.3970125,1562.3,1562.1,6.40146]
[1744359069341,0.3970125,1562.3,1562.2,6.40122]
[1744359069510,0.3970125,1562.3,1562.2,8.00682]
[1744359069715,0.3970125,1562.3,1562.2,9.447648]
[1744359069945,0.3970125,1562.3,1562.2,1.6056]
[1744359070126,0.05,1562.4,1561.6,1.5351]
[1744359070425,0.05,1562.4,1560.7,6.40738]
[1744359070426,6.40245,1561.9,1560.7,6.40738]
[1744359070630,6.40286,1561.8,1561.0,6.4059]
[1744359070861,4.40696425,1561.7,1560.8,1.5351]
[1744359071032,10.81168425,1561.4,1560.8,7.94185]
[1744359071230,6.40514,1561.3,1560.8,1.5351]
[1744359071540,4.40696425,1561.4,1560.9,6.40619]
[1744359071721,4.40696425,1561.4,1560.8,1.5351]
[1744359071918,6.40584,1561.1,1560.8,6.09743987]
[1744359072228,0.44069642,1561.3,1560.8,6.09743987]
[1744359072432,6.406,1561.1,1560.8,6.09743987]
[1744359072634,3.44069642,1561.6,1560.8,6.09743987]
[1744359072835,6.40412,1561.5,1560.8,12.50418987]
[1744359073152,6.40597,1561.1,1560.8,6.09743987]
[1744359073445,6.40543,1561.2,1560.8,6.09743987]
[1744359073612,6.40516,1561.3,1560.8,12.50424987]
[1744359073814,6.40516,1561.3,1560.8,6.09743987]
[1744359074014,11.25173067,1561.6,1560.8,6.09743987]
[1744359074015,0.44069642,1561.6,1560.8,6.09743987]
[1744359074225,6.40556,1561.2,1560.6,6.40779]
[1744359074414,6.4053,1561.3,1560.7,6.40709]
[1744359074618,6.40436,1561.5,1560.8,0.35236382]
[1744359074853,6.40492,1561.3,1560.8,7.34617351]
[1744359075018,6.4054,1561.2,1560.8,0.93945351]
[1744359075224,0.64054,1561.2,1560.8,0.93945351]
[1744359075553,6.4054,1561.2,1560.8,0.93945351]
[1744359075729,1.5984,1561.3,1560.9,0.58708969]
[1744359076075,6.40614,1561.0,1560.9,0.58708969]
[1744359076820,6.40575,1561.1,1560.8,0.58708969]
[1744359077452,6.40537,1561.2,1560.8,0.58708969]
[1744359077663,6.40553,1561.2,1560.8,0.58708969]
[1744359077826,6.40656,1560.9,1560.8,0.58708969]
[1744359078328,6.4082,1560.5,1560.4,6.09743987]
[1744359078529,6.40861,1560.4,1560.3,4.91474052]
[1744359078728,6.40861,1560.4,1560.2,6.04786819]
[1744359078729,9.40902,1560.3,1560.2,6.04786819]
[1744359078920,9.40902,1560.3,1560.0,7.45789085]
[1744359078921,6.40958,1560.2,1560.0,7.45789085]
[1744359079122,6.40984,1560.1,1560.0,7.45789085]
[1744359079331,6.40984,1560.1,1560.0,0.86744085]
[1744359079332,9.40984,1560.1,1560.0,0.86744085]
[1744359079536,10.991782,1560.1,1560.0,8.5e-07]
[1744359080124,12.621582,1560.1,1560.0,8.5e-07]
[1744359080349,12.621582,1560.1,1559.9,8.82950249]
[1744359080350,6.41025,1560.0,1559.9,5.27700734]
[1744359080531,10.81721425,1560.0,1559.9,4.10752408]
[1744359080731,13.81721425,1560.0,1559.9,4.10752408]
[1744359080933,16.16109388,1560.0,1559.9,4.10752408]
[1744359081260,6.41148,1559.7,1559.6,10.54519147]
[1744359081425,6.41148,1559.7,1559.3,8.91403465]
[1744359081426,15.98296425,1559.7,1559.3,8.91403465]
[1744359081626,11.576,1559.7,1559.3,15.32711465]
[1744359081853,17.98787,1559.7,1559.3,10.52233465]
[1744359082026,6.41197,1559.6,1559.3,8.91403465]
[1744359082744,6.41243,1559.5,1559.3,8.91403465]
[1744359082941,10.81893425,1559.6,1559.3,8.91403465]
[1744359083246,11.576,1559.7,1559.3,8.91403465]
[1744359083866,6.41191,1559.6,1559.3,8.91403465]
[1744359084050,11.576,1559.7,1559.4,0.12444788]
[1744359084265,12.82537,1559.5,1559.4,0.12444788]
[1744359084450,15.82537,1559.5,1559.4,0.12444788]
[1744359084649,15.82537,1559.5,1559.1,6.53408053]
[1744359084650,3.0,1559.2,1559.1,6.53408053]
[1744359084869,26.90800425,1559.2,1559.1,6.53408053]
[1744359085265,30.24013168,1559.2,1559.1,6.53408053]
[1744359085574,9.41436,1559.0,1558.8,1.39109739]
[1744359085786,3.0,1558.8,1558.2,1.6528]
[1744359085941,1.6473,1558.7,1557.8,7.96876]
[1744359086142,1.6473,1558.7,1558.2,6.4175]
[1744359086369,3.0,1558.8,1558.3,8.02773]
[1744359086684,10.82189425,1558.9,1558.3,8.02773]
[1744359086685,4.40696425,1558.9,1558.3,8.02758]
[1744359086987,4.40696425,1558.9,1558.5,6.41639]
[1744359087276,4.40696425,1558.9,1558.5,6.41616]
[1744359087500,11.583,1559.0,1558.5,6.41616]
[1744359087967,4.40696425,1559.2,1558.7,6.41555]
[1744359088168,4.40696425,1559.2,1558.5,0.873568]
[1744359088169,10.82069425,1559.2,1558.6,6.41584]
[1744359088680,10.82069425,1559.2,1558.5,13.706118]
[1744359088681,6.414,1559.1,1558.5,13.706118]
[1744359088885,4.40696425,1559.2,1558.7,6.4154]
[1744359089084,4.40696425,1559.2,1558.5,0.873568]
[1744359089085,17.23451425,1559.2,1558.6,6.41583]
[1744359089287,17.23444425,1559.2,1558.6,6.41583]
[1744359089486,10.82062425,1559.2,1558.6,7.704315]
[1744359089652,4.40696425,1559.2,1558.8,6.41515]
[1744359089849,6.4129,1559.4,1558.8,8.06365]
[1744359090091,6.41328,1559.3,1558.8,1.6485]
[1744359090388,6.41354,1559.2,1558.8,1.6485]
[1744359090889,12.82644,1559.3,1558.8,1.6485]
[1744359091188,6.41315,1559.3,1558.8,1.6485]
[1744359091558,9.41291,1559.4,1558.8,8.06367]
[1744359091966,6.41316,1559.3,1558.8,8.06367]
[1744359092160,6.41316,1559.3,1558.8,1.6485]
[1744359092365,12.82658,1559.3,1558.8,1.6485]
[1744359093089,6.41357,1559.2,1558.8,1.6485]
[1744359093251,6.41398,1559.1,1558.8,1.6485]
[1744359093658,6.41398,1559.1,1558.6,6.41599]
[1744359094899,10.82053425,1559.2,1558.7,6.41557]
[1744359095503,10.82053425,1559.2,1558.6,6.41599]
[1744359095873,4.40696425,1559.2,1558.5,1.6039]
[1744359096072,6.41466,1559.0,1558.5,1.6039]
[1744359096293,7.9829,1559.1,1558.5,8.0203]
[1744359096477,14.3971,1559.1,1558.5,8.0203]
[1744359096691,12.82928,1559.0,1558.5,1.6039]
[1744359096895,6.41458,1559.0,1558.5,8.02031]
[1744359098010,7.98289,1559.1,1558.5,14.43659]
[1744359098201,14.3971,1559.1,1558.5,9.463875]
[1744359098374,14.3971,1559.1,1558.5,8.02018]
[1744359098719,14.3971,1559.1,1558.5,14.43646]
[1744359098877,6.4144,1559.0,1558.5,1.6039]
[1744359099077,12.82913,1559.0,1558.5,1.6039]
[1744359099615,4.40696425,1558.9,1558.5,1.6039]
[1744359099821,10.82332425,1558.6,1558.2,1.6572]
[1744359099981,6.41661,1558.5,1558.1,0.05]
[1744359101081,6.41738,1558.3,1558.1,0.05]
[1744359101388,4.40696425,1558.3,1558.1,0.05]
[1744359101809,17.24188425,1558.3,1558.1,0.05]
[1744359101979,18.96610268,1558.3,1558.1,0.05]
[1744359102180,22.05400425,1558.6,1558.1,0.05]
[1744359102400,6.41642,1558.5,1558.1,0.05]
[1744359102599,6.41674,1558.5,1558.1,0.05]
[1744359102816,11.231,1558.6,1558.1,0.05]
[1744359103116,6.41754,1558.3,1558.1,0.05]
[1744359103309,6.41766,1558.2,1558.1,0.05]
[1744359103627,6.41754,1558.3,1558.1,0.05]
[1744359103811,4.40696425,1558.4,1558.1,0.05]
[1744359103976,6.41645,1558.5,1558.1,0.05]
[1744359104182,6.41685,1558.4,1558.1,0.05]
[1744359104383,6.41644,1558.5,1558.1,0.05]
[1744359104583,12.8332,1558.5,1558.1,0.05]
[1744359104804,6.41728,1558.3,1558.1,0.05]
[1744359105010,6.41766,1558.2,1558.1,0.05]
[1744359105708,12.83571,1558.2,1557.6,8.4236525]
[1744359105913,17.32407,1558.1,1557.6,8.4236525]
[1744359106129,10.906,1558.1,1557.7,6.41971]
[1744359106318,10.906,1558.1,1557.7,6.41951]
[1744359107115,6.41848,1558.0,1557.6,0.3970125]
[1744359107420,6.41972,1557.7,1557.6,0.3970125]
[1744359107783,6.41972,1557.7,1557.6,0.54145071]
[1744359108185,3.0,1557.9,1557.6,0.54145071]
[1744359108725,6.41955,1557.8,1557.6,0.3970125]
[1744359108893,6.41972,1557.7,1557.6,0.3970125]
[1744359109495,9.41972,1557.7,1557.6,0.3970125]
[1744359110025,3.0,1557.7,1557.6,0.3970125]
[1744359110629,9.41972,1557.7,1557.6,0.3970125]
[1744359115329,3.0,1557.7,1557.6,0.3970125]
[1744359115536,13.911,1557.7,1557.6,0.3970125]
[1744359116327,20.33072,1557.7,1557.6,0.3970125]
[1744359116527,23.44643643,1557.7,1557.6,0.3970125]
[1744359117139,3.0,1557.6,1557.2,6.42172]
[1744359117847,17.33072,1557.7,1557.2,6.42172]
[1744359118008,10.911,1557.7,1557.3,6.42135]
[1744359118541,10.911,1557.7,1557.2,6.4216]
[1744359118747,10.911,1557.7,1557.3,14.5024]
[1744359118948,10.584,1557.7,1557.3,14.5024]
[1744359119145,10.584,1557.7,1557.3,8.0811]
[1744359119440,23.42393,1557.7,1557.3,1.6598]
[1744359119649,6.42017,1557.6,1557.3,1.6598]
[1744359120007,12.84055,1557.6,1557.1,8.01891]
[1744359120519,6.42017,1557.6,1557.1,8.01891]
[1744359120844,10.584,1557.7,1557.3,6.4212]
[1744359121000,10.584,1557.7,1557.5,6.42054]
[1744359121200,10.584,1557.7,1557.6,6.42013]
[1744359121445,10.584,1557.7,1557.6,7.93443]
[1744359121736,55.038,1558.0,1557.8,6.41905]
[1744359122105,3.0,1557.9,1557.5,6.42041]
[1744359122335,15.83809,1557.9,1557.4,8.04859]
[1744359122650,9.45244548,1557.9,1557.5,6.42039]
[1744359122818,9.41892,1557.9,1557.4,8.04845]
[1744359123146,3.0,1557.9,1557.5,6.42039]
[1744359123446,3.0,1557.9,1557.5,12.84079]
[1744359123945,3.0,1557.9,1557.5,6.42039]
[1744359124443,1.5857,1557.8,1557.3,6.42129]
[1744359124641,10.82747425,1557.6,1557.1,6.47215]
[1744359124817,3.0,1557.5,1557.1,6.47215]
[1744359125139,9.42058,1557.5,1557.1,0.05]
[1744359125340,10.80333443,1557.5,1557.1,0.05]
[1744359125906,10.80333443,1557.5,1557.1,6.47217]
[1744359126142,9.42058,1557.5,1557.1,6.47217]
[1744359126341,3.0,1557.5,1557.1,6.47217]
[1744359126544,3.0,1557.5,1557.1,12.89421]
[1744359126714,3.0,1557.5,1557.1,6.47204]
[1744359127543,9.42067,1557.5,1557.1,0.05]
[1744359127751,6.42147,1557.3,1557.1,0.05]
[1744359127945,9.42178,1557.2,1557.1,0.05]
[1744359128260,20.00678,1557.2,1557.1,0.05]
[1744359130243,20.55678,1557.2,1557.1,0.05]
[1744359130424,75.62578,1557.2,1557.1,0.05]
[1744359130612,82.07822548,1557.2,1557.1,0.05]
[1744359130812,75.07578,1557.2,1557.1,0.05]
[1744359131020,68.654,1557.2,1557.1,0.05]
[1744359131249,4.40696425,1557.5,1557.1,6.47182]
[1744359131745,10.82775425,1557.5,1557.1,0.05]
[1744359131946,6.42117,1557.4,1557.1,0.05]
[1744359132134,7.40696425,1557.5,1557.1,0.05]
[1744359132333,10.586,1557.7,1557.4,6.42066]
[1744359132523,10.586,1557.7,1557.3,6.42133]
[1744359132847,23.42576,1557.7,1557.2,6.42171]
[1744359133027,6.42014,1557.6,1557.2,6.42171]
[1744359133228,4.40696425,1557.5,1557.1,1.5927]
[1744359133536,4.40696425,1557.5,1557.1,12.89417]
[1744359133742,4.40696425,1557.5,1557.2,6.42175]
[1744359133954,3.0,1557.6,1557.3,6.42123]
[1744359134313,15.31333987,1557.7,1557.3,6.42123]
[1744359134643,15.31333987,1557.7,1557.4,6.42069]
[1744359134843,15.31333987,1557.7,1557.5,6.42038]
[1744359136150,15.31333987,1557.7,1557.4,12.8415]
[1744359136652,15.31333987,1557.7,1557.4,6.42094]
[1744359136948,15.31333987,1557.7,1557.3,14.40713]
[1744359137149,17.65548539,1557.7,1557.3,1.5646]
[1744359137313,10.586,1557.7,1557.3,7.9858]
[1744359137513,10.586,1557.7,1557.4,6.42089]
[1744359137716,10.586,1557.7,1557.4,6.42079]
[1744359137930,10.586,1557.7,1557.5,6.42051]
[1744359138153,10.586,1557.7,1557.4,6.42079]
[1744359138352,4.40696425,1557.8,1557.4,6.42078]
[1744359138650,4.40696425,1557.8,1557.4,6.4208]
[1744359138860,3.0,1557.9,1557.6,6.41992]
[1744359139059,3.21,1558.0,1557.5,6.42054]
[1744359139264,3.21,1558.0,1557.9,6.41889]
[1744359139567,3.21,1558.0,1557.8,6.41914]
[1744359139749,3.21,1558.0,1557.8,6.4193]
[1744359139965,3.21,1558.0,1557.7,12.8393]
[1744359140365,3.21,1558.0,1557.7,6.41965]
[1744359140532,3.21,1558.0,1557.7,12.83922]
[1744359140860,3.21,1558.0,1557.7,6.41957]
[1744359141061,3.21,1558.0,1557.9,6.41889]
[1744359141242,3.21,1558.0,1557.8,14.37052]
[1744359141665,3.21,1558.0,1557.9,6.41889]
[1744359142965,9.62869,1558.0,1557.6,7.94356]
[1744359143360,3.21,1558.0,1557.6,1.5236]
[1744359143566,3.21,1558.0,1557.9,6.41889]
[1744359144177,3.21,1558.0,1557.8,6.41912]
[1744359144680,3.21,1558.0,1557.9,6.41889]
[1744359144986,3.21,1558.0,1557.8,12.83825]
[1744359145151,3.21,1558.0,1557.9,6.41889]
[1744359147580,3.21,1558.0,1557.8,12.83828]
[1744359147797,3.21,1558.0,1557.6,7.94367]
[1744359148285,3.21,1558.0,1557.6,6.41998]
[1744359148484,3.21,1558.0,1557.8,6.41899]
[1744359149386,3.21,1558.0,1557.9,1.5275]
[1744359149688,3.21,1558.0,1557.9,7.94639]
[1744359150989,9.04556559,1558.6,1558.4,6.41653]
[1744359151156,4.72733987,1558.6,1558.5,6.41642]
[1744359151864,6.41211,1559.6,1558.5,6.41642]
[1744359151865,2.32e-06,1559.5,1559.4,6.96272]
[1744359152063,9.08290936,1559.5,1559.4,6.41272]
[1744359152493,9.08290936,1559.5,1559.3,1.6242]
[1744359152794,9.99120053,1559.5,1559.0,8.00361]
[1744359152994,9.99120053,1559.5,1559.0,14.41769]
[1744359153182,9.99120053,1559.5,1559.1,6.41377]
[1744359153492,9.99120053,1559.5,1559.1,6.41376]
[1744359153667,9.99120053,1559.5,1559.0,14.41778]
[1744359153866,9.08290936,1559.5,1559.2,6.4134]
[1744359154095,9.08290936,1559.5,1559.1,6.41374]
[1744359154402,9.08290936,1559.5,1559.2,12.82683]
[1744359154561,2.32e-06,1559.6,1559.2,0.55]
[1744359154765,1.6285,1560.5,1559.6,1.554]
[1744359154968,1.6285,1560.5,1560.0,12.82019]
[1744359155195,1.6285,1560.5,1560.1,6.40984]
[1744359155487,1.6285,1560.5,1560.0,6.41024]
[1744359155802,4.6285,1560.5,1560.0,6.41007]
[1744359156009,0.51785,1560.4,1560.0,6.41007]
[1744359156169,0.51785,1560.4,1559.9,6.41059]
[1744359156573,6.92678,1560.4,1559.8,12.8216]
[1744359156817,6.92649,1560.4,1559.8,6.41106]
[1744359157006,0.51785,1560.4,1560.1,6.40983]
[1744359157180,0.51785,1560.4,1560.1,12.8195]
[1744359157365,0.51785,1560.4,1560.1,6.40967]
[1744359157905,0.51785,1560.4,1560.0,6.4102]
[1744359158601,6.92672,1560.4,1559.8,6.41105]
[1744359158803,0.692672,1560.3,1559.8,12.82189]
[1744359159109,0.692672,1560.3,1559.9,6.41064]
[1744359159678,9.92652,1560.4,1559.9,6.41066]
[1744359159679,0.05,1560.4,1559.9,6.41066]
[1744359159875,0.05,1560.4,1559.8,0.55]
[1744359159876,0.05,1560.4,1560.3,6.40902]
[1744359162675,0.05,1560.4,1560.2,6.40921]
[1744359163001,0.05,1560.4,1560.1,7.98421]
[1744359163002,0.05,1560.4,1560.1,6.40981]
[1744359163203,0.05,1560.4,1560.1,12.81942]
[1744359163404,0.05,1560.4,1560.1,6.40961]
[1744359164122,0.05,1560.4,1560.1,6.40943]
[1744359164328,1.58,1560.6,1560.1,12.81901]
[1744359164636,7.98782,1560.6,1560.1,6.40943]
[1744359164837,9.086602,1560.6,1560.1,6.40943]
[1744359165139,9.086602,1560.6,1560.1,12.81912]
[1744359165626,9.086602,1560.6,1560.1,6.40943]
[1744359165798,15.494632,1560.6,1560.1,6.40943]
[1744359165998,9.086602,1560.6,1560.1,12.81911]
[1744359166221,9.086602,1560.6,1560.1,6.40943]
[1744359166427,6.40821,1560.5,1560.1,6.40943]
[1744359166597,6.40821,1560.5,1559.7,8.04444]
[1744359166598,6.40958,1560.2,1559.7,8.04444]
[1744359166904,6.40909,1560.3,1559.8,6.41089]
[1744359167300,6.40909,1560.3,1559.8,12.82183]
[1744359167694,8.3057063,1560.5,1559.8,6.41107]
[1744359167891,9.40822,1560.5,1560.0,6.41005]
[1744359168509,15.81668,1560.5,1560.0,6.41005]
[1744359168706,6.40875,1560.4,1559.9,6.41066]
[1744359168939,6.40875,1560.4,1559.8,7.133418]
[1744359168940,6.40929,1560.3,1559.8,6.41106]
[1744359169302,6.40956,1560.2,1559.8,6.41106]
[1744359170114,6.40867,1560.4,1559.7,1.6333]
[1744359170313,3.0,1560.5,1560.1,6.40952]
[1744359170613,9.40834,1560.5,1560.1,6.40952]
[1744359171048,6.40922,1560.3,1559.8,12.82159]
[1744359171199,6.40922,1560.3,1559.7,8.04471]
[1744359171200,3.0,1560.3,1559.7,8.04471]
[1744359171409,6.41026,1560.0,1559.5,6.41196]
[1744359171617,6.41026,1560.0,1559.5,12.82408]
[1744359171820,6.41026,1560.0,1559.6,12.82347]
[1744359172109,6.4099,1560.1,1559.6,6.4117]
[1744359172306,6.41031,1560.0,1559.6,6.4117]
[1744359173106,12.82076,1560.0,1559.5,6.41227]
[1744359173311,6.4107,1559.9,1559.5,6.41227]
[1744359173511,6.41031,1560.0,1559.3,7.98053]
[1744359173832,6.41031,1560.0,1559.6,6.41177]
[1744359174037,1.376122,1560.0,1559.6,6.41177]
[1744359174825,7.786392,1560.0,1559.6,6.41177]
[1744359175241,2.903622,1560.0,1559.3,1.5675]
[1744359175446,10.9379,1560.0,1559.6,6.41188]
[1744359175619,1.5275,1560.0,1559.7,6.41132]
[1744359175818,12.24598756,1560.3,1559.8,6.41073]
[1744359176018,6.40944,1560.2,1559.8,6.41073]
[1744359176238,6.40944,1560.2,1559.8,12.82161]
[1744359176633,12.81911,1560.2,1559.8,6.41073]
[1744359176956,6.40988,1560.1,1559.8,6.41073]
[1744359177655,12.81996,1560.1,1559.7,6.41143]
[1744359177857,6.40988,1560.1,1559.7,12.82274]
[1744359179131,5.83675756,1560.3,1559.7,12.82274]
[1744359179132,12.24586756,1560.3,1559.7,6.41148]
[1744359179333,7.93661,1560.3,1559.9,6.41053]
[1744359179837,7.93661,1560.3,1560.0,6.41021]
[1744359180645,10.9465,1560.5,1560.2,6.4094]
[1744359180842,7.9465,1560.5,1560.2,6.4094]
[1744359181149,9.91,1560.6,1560.3,6.40863]
[1744359181331,9.91,1560.6,1560.3,12.81748]
[1744359181653,9.91,1560.6,1560.3,6.40863]
[1744359182157,6.40887,1560.4,1560.0,6.41018]
[1744359182323,12.81782,1560.4,1560.0,6.41018]
[1744359182525,6.40907,1560.3,1559.9,14.41589]
[1744359182768,8.00512,1560.7,1560.3,6.40882]
[1744359182949,14.4127,1560.7,1560.3,6.40882]
[1744359183323,6.40959,1560.2,1559.8,6.89815458]
[1744359183524,6.40959,1560.2,1559.8,0.48725458]
[1744359183525,6.40943,1560.2,1559.8,0.48725458]
[1744359183843,6.40991,1560.1,1559.8,0.48725458]
[1744359184046,6.40991,1560.1,1559.7,6.4112]
[1744359184376,6.41032,1560.0,1559.7,6.4112]
[1744359184673,6.41069,1559.9,1559.8,0.94353709]
[1744359185424,6.41069,1559.9,1559.8,0.58970739]
[1744359185628,5.92765756,1559.9,1559.6,6.41153]
[1744359185844,9.682,1560.1,1559.4,8.00914]
[1744359186049,16.09203,1560.1,1559.7,12.82261]
[1744359186250,16.09203,1560.1,1559.7,12.82256]
[1744359186532,6.41039,1560.0,1559.6,6.41183]
[1744359186727,6.41075,1559.9,1559.6,6.41183]
[1744359187072,6.41075,1559.9,1559.7,0.35373342]
[1744359187575,6.41107,1559.8,1559.7,0.35373342]
[1744359187870,7.94367,1559.8,1559.7,0.35373342]
[1744359188571,6.41152,1559.7,1559.4,6.41252]
[1744359188725,12.82327,1559.7,1559.3,6.76683342]
[1744359188926,6.41246,1559.5,1559.3,0.35373342]
[1744359189156,6.41272,1559.4,1559.3,0.35373342]
[1744359189453,6.41214,1559.6,1559.0,0.35373342]
[1744359189654,16.09356,1559.7,1559.3,6.41285]
[1744359189958,9.682,1559.7,1559.3,0.641285]
[1744359190261,9.41081,1559.9,1559.3,2.165185]
[1744359190559,17.61664,1560.1,1559.7,12.82236]
[1744359191060,24.0267,1560.1,1559.7,6.41111]
[1744359191364,6.4116,1559.7,1559.4,6.41265]
[1744359191736,6.41085,1559.9,1559.4,6.41272]
[1744359191939,6.41085,1559.9,1559.5,6.41216]
[1744359192244,6.41112,1559.8,1559.5,6.41216]
[1744359192438,6.41112,1559.8,1559.4,6.41272]
[1744359192757,9.41027,1560.0,1559.6,6.41167]
[1744359192758,9.41033,1560.0,1559.6,6.41167]
[1744359192949,12.8218,1559.9,1559.5,6.41211]
[1744359193759,12.8218,1559.9,1559.6,0.35355065]
[1744359193961,6.41085,1559.9,1559.6,0.35355065]
[1744359194254,6.41112,1559.8,1559.6,0.35355065]
[1744359194457,6.41073,1559.9,1559.6,0.35355065]
[1744359194657,9.41034,1560.0,1559.6,6.41165]
[1744359194862,24.02666,1560.1,1559.7,6.41112]
[1744359195027,9.682,1560.1,1560.0,6.41025]
[1744359195240,1.5708,1560.4,1559.7,7.94694]
[1744359195441,6.41074,1559.9,1559.8,0.35355065]
[1744359196577,6.41074,1559.9,1559.5,12.82434]
[1744359196753,6.41074,1559.9,1559.6,6.41185]
[1744359197075,12.82161,1559.9,1559.5,12.82429]
[1744359197273,1.5573,1560.0,1559.6,0.35332973]
[1744359197476,7.9677,1560.0,1559.6,13.17690973]
[1744359197655,7.9677,1560.0,1559.7,6.41148]
[1744359197973,6.40952,1560.2,1559.8,6.41091]
[1744359198178,6.40999,1560.1,1559.8,0.35332973]
[1744359198558,6.40999,1560.1,1559.8,6.76437973]
[1744359198947,6.40951,1560.2,1559.8,12.82195]
[1744359199159,12.81916,1560.2,1559.8,12.82195]
[1744359199475,6.41043,1560.0,1559.6,6.41173]
[1744359199680,6.41068,1559.9,1559.5,6.41223]
[1744359199875,6.41068,1559.9,1559.6,0.35311064]
[1744359199876,6.41108,1559.8,1559.6,0.35311064]
[1744359200358,12.8216,1559.9,1559.6,0.35311064]
[1744359200558,6.41121,1559.8,1559.4,7.94818]
[1744359200878,8.04105,1559.9,1559.5,6.41229]
[1744359201080,6.41075,1559.9,1559.5,12.82441]
[1744359201287,6.41075,1559.9,1559.5,6.41212]